[Event "Early-Titled-Tuesday-Blitz-July-09-2024"]
[Site "Chess.com"]
[Date "2024.07.09"]
[Round "6"]
[White "simonachess"]
[Black "JEHUBNER"]
[Result "1-0"]
[WhiteElo "2314"]
[BlackElo "2013"]
[TimeControl "180+1"]
[EndTime "9:07:12 PDT"]
[Termination "simonachess won by resignation"]

1. d4 {[%clk 0:03:00.9]} 1... Nf6 {[%clk 0:02:56.2]} 2. c4 {[%clk 0:02:59.9]}
2... g6 {[%clk 0:02:54.6]} 3. Nc3 {[%clk 0:02:59.7]} 3... Bg7 {[%clk 0:02:54.6]}
4. e4 {[%clk 0:02:59.8]} 4... d6 {[%clk 0:02:54.5]} 5. Be2 {[%clk 0:03:00.1]}
5... O-O {[%clk 0:02:53.1]} 6. Bg5 {[%clk 0:03:00]} 6... c5 {[%clk 0:02:51.8]}
7. d5 {[%clk 0:02:59.6]} 7... e6 {[%clk 0:02:49.8]} 8. Nf3 {[%clk 0:02:59.6]}
8... Nbd7 {[%clk 0:02:48.3]} 9. O-O {[%clk 0:02:58.5]} 9... e5 {[%clk
0:02:41.8]} 10. h3 {[%clk 0:02:58.3]} 10... h6 {[%clk 0:02:41.5]} 11. Bh4 {[%clk
0:02:57.2]} 11... a6 {[%clk 0:02:36.5]} 12. Ne1 {[%clk 0:02:55.3]} 12... g5
{[%clk 0:02:16.9]} 13. Bg3 {[%clk 0:02:52.6]} 13... Ne8 {[%clk 0:02:13]} 14. a4
{[%clk 0:02:51.9]} 14... f5 {[%clk 0:02:10.1]} 15. exf5 {[%clk 0:02:51.8]} 15...
Rxf5 {[%clk 0:02:11]} 16. Bd3 {[%clk 0:02:51.1]} 16... Rf8 {[%clk 0:02:10.8]}
17. Ne4 {[%clk 0:02:51.3]} 17... Ndf6 {[%clk 0:02:09.1]} 18. Nc2 {[%clk
0:02:45.9]} 18... Nxe4 {[%clk 0:02:08.9]} 19. Bxe4 {[%clk 0:02:46.8]} 19... Nf6
{[%clk 0:02:06.7]} 20. Bg6 {[%clk 0:02:46.7]} 20... Bd7 {[%clk 0:02:03.3]} 21.
a5 {[%clk 0:02:40.9]} 21... Be8 {[%clk 0:02:03.5]} 22. Bxe8 {[%clk 0:02:39.7]}
22... Qxe8 {[%clk 0:02:04.4]} 23. Ne3 {[%clk 0:02:40.1]} 23... Qg6 {[%clk
0:02:04.2]} 24. Qb1 {[%clk 0:02:39.8]} 24... Kh7 {[%clk 0:01:54]} 25. b4 {[%clk
0:02:30.5]} 25... cxb4 {[%clk 0:01:51.7]} 26. Qxb4 {[%clk 0:02:29.6]} 26... Rf7
{[%clk 0:01:49.5]} 27. Qxd6 {[%clk 0:02:28.2]} 27... Raf8 {[%clk 0:01:39.1]} 28.
Rab1 {[%clk 0:02:26.7]} 28... Qd3 {[%clk 0:01:33.7]} 29. Rbd1 {[%clk 0:02:14.2]}
29... Qb3 {[%clk 0:01:16.4]} 30. Qxe5 {[%clk 0:02:09]} 30... Nh5 {[%clk
0:01:14.5]} 31. Qe4+ {[%clk 0:02:06.9]} 31... Kh8 {[%clk 0:01:13.5]} 32. Be5
{[%clk 0:02:01.2]} 32... Nf6 {[%clk 0:01:10.6]} 33. Qd3 {[%clk 0:01:52.9]} 33...
Qb4 {[%clk 0:01:09.7]} 34. Nf5 {[%clk 0:01:48.8]} 34... Qxa5 {[%clk 0:01:07.1]}
35. Nxg7 {[%clk 0:01:43.1]} 35... Kxg7 {[%clk 0:01:08]} 36. f4 {[%clk
0:01:41.4]} 36... Re8 {[%clk 0:00:52.2]} 37. Bd4 {[%clk 0:01:31.4]} 37... Kg8
{[%clk 0:00:36.2]} 38. Qg6+ {[%clk 0:01:23.1]} 1-0

[Event "Early-Titled-Tuesday-Blitz-July-09-2024"]
[Site "Chess.com"]
[Date "2024.07.09"]
[Round "6"]
[White "jasrom"]
[Black "KevinGeorgeMicheal"]
[Result "1-0"]
[WhiteElo "2357"]
[BlackElo "2519"]
[TimeControl "180+1"]
[EndTime "9:07:16 PDT"]
[Termination "jasrom won on time"]

1. e4 {[%clk 0:03:00.9]} 1... c5 {[%clk 0:02:55.9]} 2. Nc3 {[%clk 0:03:00.2]}
2... Nc6 {[%clk 0:02:56]} 3. f4 {[%clk 0:03:00.4]} 3... e6 {[%clk 0:02:54.6]} 4.
Nf3 {[%clk 0:03:00.6]} 4... d5 {[%clk 0:02:55]} 5. Bb5 {[%clk 0:03:00.2]} 5...
dxe4 {[%clk 0:02:52.8]} 6. Bxc6+ {[%clk 0:02:59.4]} 6... bxc6 {[%clk 0:02:52.5]}
7. Nxe4 {[%clk 0:02:59.9]} 7... Nf6 {[%clk 0:02:53.1]} 8. Qe2 {[%clk 0:02:59]}
8... Nxe4 {[%clk 0:02:50.4]} 9. Qxe4 {[%clk 0:02:58.6]} 9... Qd5 {[%clk
0:02:50.3]} 10. d3 {[%clk 0:02:58.6]} 10... Bd6 {[%clk 0:02:43.2]} 11. c4 {[%clk
0:02:55]} 11... Qxe4+ {[%clk 0:02:42.2]} 12. dxe4 {[%clk 0:02:55.9]} 12... f6
{[%clk 0:02:35]} 13. Be3 {[%clk 0:02:55]} 13... e5 {[%clk 0:02:28.5]} 14. fxe5
{[%clk 0:02:41.7]} 14... fxe5 {[%clk 0:02:25.2]} 15. O-O-O {[%clk 0:02:42.1]}
15... Ke7 {[%clk 0:02:22.5]} 16. Bg5+ {[%clk 0:02:07.1]} 16... Ke6 {[%clk
0:02:20.2]} 17. Rd3 {[%clk 0:02:02.5]} 17... h6 {[%clk 0:02:03.9]} 18. Be3
{[%clk 0:01:52]} 18... a5 {[%clk 0:01:31.1]} 19. Rhd1 {[%clk 0:01:48.6]} 19...
Be7 {[%clk 0:01:30.9]} 20. Bf2 {[%clk 0:01:24.1]} 20... Ba6 {[%clk 0:01:26.1]}
21. b3 {[%clk 0:01:23.9]} 1-0

[Event "Early-Titled-Tuesday-Blitz-July-09-2024"]
[Site "Chess.com"]
[Date "2024.07.09"]
[Round "6"]
[White "mishanick"]
[Black "tusplingher"]
[Result "1-0"]
[WhiteElo "3087"]
[BlackElo "2692"]
[TimeControl "180+1"]
[EndTime "9:07:19 PDT"]
[Termination "mishanick won by resignation"]

1. c4 {[%clk 0:03:00.2]} 1... e6 {[%clk 0:02:58.8]} 2. d4 {[%clk 0:03:00.3]}
2... d5 {[%clk 0:02:58.8]} 3. Nc3 {[%clk 0:03:00.7]} 3... Nf6 {[%clk 0:02:59]}
4. cxd5 {[%clk 0:02:57.6]} 4... exd5 {[%clk 0:02:59]} 5. Bf4 {[%clk 0:02:58.1]}
5... Bd6 {[%clk 0:02:57.6]} 6. Bxd6 {[%clk 0:02:58.4]} 6... Qxd6 {[%clk
0:02:57.3]} 7. e3 {[%clk 0:02:59.2]} 7... c6 {[%clk 0:02:57.4]} 8. Bd3 {[%clk
0:02:59.5]} 8... O-O {[%clk 0:02:57.5]} 9. Nge2 {[%clk 0:03:00]} 9... Be6 {[%clk
0:02:56.3]} 10. f3 {[%clk 0:02:58.9]} 10... Nbd7 {[%clk 0:02:56.5]} 11. Qd2
{[%clk 0:02:57.4]} 11... Rfe8 {[%clk 0:02:55.6]} 12. e4 {[%clk 0:02:55.4]} 12...
dxe4 {[%clk 0:02:48.6]} 13. fxe4 {[%clk 0:02:56.3]} 13... Qc7 {[%clk 0:02:47.2]}
14. O-O {[%clk 0:02:52.1]} 14... Rad8 {[%clk 0:02:31]} 15. Rad1 {[%clk
0:02:43.6]} 15... Qb6 {[%clk 0:02:24.7]} 16. Kh1 {[%clk 0:02:43]} 16... a6
{[%clk 0:02:18.1]} 17. h3 {[%clk 0:02:42]} 17... Qc7 {[%clk 0:02:17]} 18. Bb1
{[%clk 0:02:36.3]} 18... Bc4 {[%clk 0:01:59.1]} 19. Rf3 {[%clk 0:02:19.7]} 19...
c5 {[%clk 0:01:36.7]} 20. d5 {[%clk 0:02:15.9]} 20... Ne5 {[%clk 0:01:36.3]} 21.
Rg3 {[%clk 0:02:08.3]} 21... Nh5 {[%clk 0:01:28.7]} 22. Rg5 {[%clk 0:02:05.1]}
22... g6 {[%clk 0:01:26.8]} 23. Rf1 {[%clk 0:02:03.1]} 23... Qe7 {[%clk
0:01:15.3]} 24. Rxh5 {[%clk 0:01:54.5]} 24... gxh5 {[%clk 0:01:14.9]} 25. Rf5
{[%clk 0:01:54.8]} 25... Ng6 {[%clk 0:01:12.3]} 26. Rxh5 {[%clk 0:01:52.2]}
26... Bxe2 {[%clk 0:01:06.3]} 27. Nxe2 {[%clk 0:01:51.1]} 27... Qf6 {[%clk
0:00:59.5]} 28. Rf5 {[%clk 0:01:39.5]} 28... Qh4 {[%clk 0:00:55.1]} 29. Qc3
{[%clk 0:01:34.7]} 29... Rxe4 {[%clk 0:00:40.4]} 30. Bxe4 {[%clk 0:01:28.5]}
30... Qxe4 {[%clk 0:00:40.7]} 31. Ng3 {[%clk 0:01:28.8]} 31... Qd4 {[%clk
0:00:37.7]} 32. Qf3 {[%clk 0:01:26.3]} 32... Nh4 {[%clk 0:00:33]} 33. Qh5 {[%clk
0:01:18.9]} 33... Nxf5 {[%clk 0:00:32.5]} 34. Qg5+ {[%clk 0:01:19.2]} 1-0

[Event "Early-Titled-Tuesday-Blitz-July-09-2024"]
[Site "Chess.com"]
[Date "2024.07.09"]
[Round "6"]
[White "Vision_64"]
[Black "dey2580"]
[Result "1-0"]
[WhiteElo "2335"]
[BlackElo "2457"]
[TimeControl "180+1"]
[EndTime "9:07:19 PDT"]
[Termination "Vision_64 won on time"]

1. e4 {[%clk 0:03:00.9]} 1... g6 {[%clk 0:02:55.6]} 2. d4 {[%clk 0:02:57.8]}
2... Bg7 {[%clk 0:02:54.4]} 3. Be3 {[%clk 0:02:56.9]} 3... a6 {[%clk 0:02:53.1]}
4. f3 {[%clk 0:02:53.2]} 4... h5 {[%clk 0:02:44.8]} 5. Qd2 {[%clk 0:02:52.6]}
5... c6 {[%clk 0:02:41.5]} 6. Nc3 {[%clk 0:02:49.2]} 6... d5 {[%clk 0:02:41.1]}
7. O-O-O {[%clk 0:02:46.4]} 7... b5 {[%clk 0:02:37.4]} 8. e5 {[%clk 0:02:30.8]}
8... Nh6 {[%clk 0:02:36.2]} 9. Bd3 {[%clk 0:02:28.3]} 9... Bf5 {[%clk
0:02:35.9]} 10. Nge2 {[%clk 0:02:22.2]} 10... Nd7 {[%clk 0:02:35.9]} 11. Rdg1
{[%clk 0:02:20.8]} 11... Nb6 {[%clk 0:02:35.7]} 12. Kb1 {[%clk 0:02:16.8]} 12...
Nc4 {[%clk 0:02:35.1]} 13. Bxc4 {[%clk 0:02:14.6]} 13... bxc4 {[%clk 0:02:35.3]}
14. Ng3 {[%clk 0:01:59.8]} 14... Be6 {[%clk 0:02:29.9]} 15. h4 {[%clk
0:01:53.3]} 15... Rb8 {[%clk 0:02:28.9]} 16. Ka1 {[%clk 0:01:50.9]} 16... Qa5
{[%clk 0:01:49.6]} 17. Nce4 {[%clk 0:01:22.2]} 17... Qb6 {[%clk 0:01:43.9]} 18.
Qc3 {[%clk 0:01:14.3]} 18... dxe4 {[%clk 0:00:57.7]} 19. d5 {[%clk 0:01:13.7]}
1-0

[Event "Early-Titled-Tuesday-Blitz-July-09-2024"]
[Site "Chess.com"]
[Date "2024.07.09"]
[Round "6"]
[White "ccccvhhhj"]
[Black "KorolDimitriy75"]
[Result "0-1"]
[WhiteElo "2508"]
[BlackElo "2406"]
[TimeControl "180+1"]
[EndTime "9:07:21 PDT"]
[Termination "KorolDimitriy75 won by checkmate"]

1. e4 {[%clk 0:03:00.9]} 1... c5 {[%clk 0:03:00]} 2. Nf3 {[%clk 0:03:00.8]} 2...
d6 {[%clk 0:03:00.4]} 3. d4 {[%clk 0:03:01.1]} 3... cxd4 {[%clk 0:03:01.3]} 4.
Nxd4 {[%clk 0:03:01.8]} 4... Nf6 {[%clk 0:03:01.8]} 5. Nc3 {[%clk 0:03:02.2]}
5... g6 {[%clk 0:03:02.7]} 6. Be3 {[%clk 0:03:01.9]} 6... Bg7 {[%clk 0:03:03]}
7. f3 {[%clk 0:03:02.7]} 7... O-O {[%clk 0:03:03.4]} 8. Qd2 {[%clk 0:03:03.6]}
8... Nc6 {[%clk 0:03:03.8]} 9. g4 {[%clk 0:03:04.4]} 9... Be6 {[%clk 0:03:03.6]}
10. Nxe6 {[%clk 0:03:04]} 10... fxe6 {[%clk 0:03:04.5]} 11. O-O-O {[%clk
0:03:02.9]} 11... Ne5 {[%clk 0:03:04]} 12. Be2 {[%clk 0:03:00.4]} 12... Qc8
{[%clk 0:03:04.1]} 13. h4 {[%clk 0:02:57.7]} 13... Nc4 {[%clk 0:03:03]} 14. Bxc4
{[%clk 0:02:58]} 14... Qxc4 {[%clk 0:03:03.9]} 15. h5 {[%clk 0:02:53.4]} 15...
Nd7 {[%clk 0:03:03.6]} 16. hxg6 {[%clk 0:02:51.9]} 16... hxg6 {[%clk 0:03:04.5]}
17. Bh6 {[%clk 0:02:10.5]} 17... Bxc3 {[%clk 0:03:03.6]} 18. bxc3 {[%clk
0:02:09.7]} 18... Rxf3 {[%clk 0:03:02.6]} 19. Qg5 {[%clk 0:01:59.6]} 19... Kf7
{[%clk 0:02:51.8]} 20. Bg7 {[%clk 0:01:13.2]} 20... Rg8 {[%clk 0:02:45.8]} 21.
Bd4 {[%clk 0:01:01.2]} 21... e5 {[%clk 0:02:43.1]} 22. Rh7+ {[%clk 0:00:59.5]}
22... Rg7 {[%clk 0:02:43.1]} 23. Rxg7+ {[%clk 0:00:52.3]} 23... Kxg7 {[%clk
0:02:44]} 24. Be3 {[%clk 0:00:19.5]} 24... Nf6 {[%clk 0:01:57.8]} 25. Rd3 {[%clk
0:00:12.3]} 25... Qxa2 {[%clk 0:01:34.5]} 26. Qh6+ {[%clk 0:00:12.3]} 26... Kf7
{[%clk 0:01:34]} 27. Kd2 {[%clk 0:00:11.3]} 27... Qa1 {[%clk 0:01:20.1]} 28. g5
{[%clk 0:00:10.9]} 28... Nxe4+ {[%clk 0:01:19.3]} 29. Ke2 {[%clk 0:00:08.6]}
29... Qf1# {[%clk 0:01:19.3]} 0-1

[Event "Early-Titled-Tuesday-Blitz-July-09-2024"]
[Site "Chess.com"]
[Date "2024.07.09"]
[Round "6"]
[White "RTchess367"]
[Black "betta2004"]
[Result "0-1"]
[WhiteElo "2294"]
[BlackElo "2519"]
[TimeControl "180+1"]
[EndTime "9:07:28 PDT"]
[Termination "betta2004 won by resignation"]

1. e4 {[%clk 0:03:00.9]} 1... e6 {[%clk 0:02:51.1]} 2. d4 {[%clk 0:03:00.2]}
2... d5 {[%clk 0:02:52]} 3. e5 {[%clk 0:02:59.9]} 3... c5 {[%clk 0:02:48.1]} 4.
c3 {[%clk 0:02:59.6]} 4... Nc6 {[%clk 0:02:48.1]} 5. Nf3 {[%clk 0:02:59.3]} 5...
Qb6 {[%clk 0:02:48.7]} 6. Bd3 {[%clk 0:02:59.2]} 6... Bd7 {[%clk 0:02:49.3]} 7.
O-O {[%clk 0:02:58.5]} 7... h5 {[%clk 0:02:48.3]} 8. dxc5 {[%clk 0:02:54.5]}
8... Bxc5 {[%clk 0:02:47.7]} 9. b4 {[%clk 0:02:54.4]} 9... Be7 {[%clk
0:02:48.3]} 10. a4 {[%clk 0:02:53.9]} 10... Nh6 {[%clk 0:02:48.6]} 11. Be3
{[%clk 0:02:47.3]} 11... Qc7 {[%clk 0:02:46.5]} 12. Bf4 {[%clk 0:02:18.4]} 12...
Ng4 {[%clk 0:02:31.9]} 13. Re1 {[%clk 0:02:15.5]} 13... g5 {[%clk 0:02:15.4]}
14. Nxg5 {[%clk 0:02:02.8]} 14... Ncxe5 {[%clk 0:02:11]} 15. Nf3 {[%clk
0:01:28.2]} 15... Bd6 {[%clk 0:01:49.6]} 16. Nxe5 {[%clk 0:01:11.8]} 16... Bxe5
{[%clk 0:01:47.7]} 17. Bxe5 {[%clk 0:01:11.4]} 17... Nxe5 {[%clk 0:01:48.6]} 18.
Bf1 {[%clk 0:00:54.9]} 18... Ng4 {[%clk 0:01:44.9]} 19. g3 {[%clk 0:00:51.3]}
19... O-O-O {[%clk 0:01:34.9]} 20. Nd2 {[%clk 0:00:45.5]} 20... Kb8 {[%clk
0:01:30.7]} 21. Qf3 {[%clk 0:00:34.1]} 21... f5 {[%clk 0:01:25.1]} 22. h4 {[%clk
0:00:32.2]} 22... Rhg8 {[%clk 0:01:22.4]} 23. c4 {[%clk 0:00:23.1]} 23... d4
{[%clk 0:01:16.8]} 24. b5 {[%clk 0:00:20.8]} 24... e5 {[%clk 0:01:15.7]} 25. Qd5
{[%clk 0:00:16.5]} 25... e4 {[%clk 0:01:10.3]} 26. c5 {[%clk 0:00:16.2]} 26...
Bc8 {[%clk 0:01:05.4]} 27. c6 {[%clk 0:00:15.9]} 27... Rxd5 {[%clk 0:01:04.9]}
0-1

[Event "Early-Titled-Tuesday-Blitz-July-09-2024"]
[Site "Chess.com"]
[Date "2024.07.09"]
[Round "6"]
[White "IlanSchnaider"]
[Black "Prizant_academy"]
[Result "0-1"]
[WhiteElo "2839"]
[BlackElo "3024"]
[TimeControl "180+1"]
[EndTime "9:07:29 PDT"]
[Termination "Prizant_academy won by resignation"]

1. e4 {[%clk 0:03:00.9]} 1... c5 {[%clk 0:03:00.3]} 2. Nf3 {[%clk 0:03:00.7]}
2... d6 {[%clk 0:03:00.2]} 3. Bb5+ {[%clk 0:02:59.4]} 3... Nd7 {[%clk
0:02:59.9]} 4. a4 {[%clk 0:02:59.3]} 4... Nf6 {[%clk 0:02:58.9]} 5. Nc3 {[%clk
0:02:59.4]} 5... a6 {[%clk 0:02:59.6]} 6. Bc4 {[%clk 0:02:58.7]} 6... b6 {[%clk
0:03:00.3]} 7. O-O {[%clk 0:02:42]} 7... e6 {[%clk 0:02:52.1]} 8. d4 {[%clk
0:02:39.3]} 8... cxd4 {[%clk 0:02:51.7]} 9. Nxd4 {[%clk 0:02:40.2]} 9... Nc5
{[%clk 0:02:33.5]} 10. Re1 {[%clk 0:02:35]} 10... Qc7 {[%clk 0:02:25.5]} 11. Bg5
{[%clk 0:02:17]} 11... Be7 {[%clk 0:02:15.4]} 12. b4 {[%clk 0:01:56.3]} 12...
Ncd7 {[%clk 0:02:10.5]} 13. Bxf6 {[%clk 0:01:34.5]} 13... Bxf6 {[%clk
0:01:52.7]} 14. Ndb5 {[%clk 0:01:34.6]} 14... axb5 {[%clk 0:01:46.5]} 15. Nxb5
{[%clk 0:01:35.5]} 15... Qb8 {[%clk 0:01:41.2]} 16. Nxd6+ {[%clk 0:00:17.8]}
16... Ke7 {[%clk 0:01:41.2]} 17. Nb5 {[%clk 0:00:08.5]} 17... Bxa1 {[%clk
0:01:33]} 18. Qxa1 {[%clk 0:00:09.4]} 18... Qe5 {[%clk 0:01:32.6]} 19. Qa3
{[%clk 0:00:08.2]} 19... Rd8 {[%clk 0:01:29.7]} 20. Qh3 {[%clk 0:00:07.3]} 20...
Nf6 {[%clk 0:01:28.2]} 21. Bb3 {[%clk 0:00:05.9]} 21... Bd7 {[%clk 0:01:26.2]}
22. f4 {[%clk 0:00:02.6]} 22... Qxf4 {[%clk 0:01:26.4]} 23. e5 {[%clk
0:00:03.2]} 23... Ng4 {[%clk 0:01:19.1]} 24. Rf1 {[%clk 0:00:01.2]} 24... Qe3+
{[%clk 0:01:18]} 25. Kh1 {[%clk 0:00:01.1]} 25... Nf2+ {[%clk 0:01:17.2]} 26.
Kg1 {[%clk 0:00:01.2]} 26... Nxh3+ {[%clk 0:01:17.4]} 0-1

[Event "Early-Titled-Tuesday-Blitz-July-09-2024"]
[Site "Chess.com"]
[Date "2024.07.09"]
[Round "6"]
[White "FMalexhdez"]
[Black "AlphaPerseii"]
[Result "1-0"]
[WhiteElo "2278"]
[BlackElo "2422"]
[TimeControl "180+1"]
[EndTime "9:07:32 PDT"]
[Termination "FMalexhdez won by resignation"]

1. e4 {[%clk 0:02:54.4]} 1... c5 {[%clk 0:02:59]} 2. Nf3 {[%clk 0:02:54.5]} 2...
Nc6 {[%clk 0:02:59.4]} 3. d4 {[%clk 0:02:54.7]} 3... cxd4 {[%clk 0:03:00.1]} 4.
Nxd4 {[%clk 0:02:55]} 4... Nf6 {[%clk 0:03:00.8]} 5. Nc3 {[%clk 0:02:54.7]} 5...
d6 {[%clk 0:03:01.4]} 6. g3 {[%clk 0:02:51]} 6... g6 {[%clk 0:02:58.8]} 7. Bg2
{[%clk 0:02:50.4]} 7... Bg7 {[%clk 0:02:59.1]} 8. O-O {[%clk 0:02:42.2]} 8...
O-O {[%clk 0:02:56.3]} 9. Nde2 {[%clk 0:02:28.9]} 9... a6 {[%clk 0:02:30.6]} 10.
a4 {[%clk 0:02:26.9]} 10... Nd7 {[%clk 0:02:21.6]} 11. h3 {[%clk 0:02:25.9]}
11... Nc5 {[%clk 0:02:09.5]} 12. Be3 {[%clk 0:02:17]} 12... Bd7 {[%clk
0:01:43.4]} 13. Nf4 {[%clk 0:01:59.3]} 13... Rc8 {[%clk 0:01:35.9]} 14. Nd3
{[%clk 0:01:55.6]} 14... Nxd3 {[%clk 0:01:23]} 15. cxd3 {[%clk 0:01:55.5]} 15...
Nd4 {[%clk 0:01:15.8]} 16. Kh2 {[%clk 0:01:41.5]} 16... Qa5 {[%clk 0:00:40.3]}
17. f4 {[%clk 0:01:40.1]} 17... Rfe8 {[%clk 0:00:19.4]} 18. e5 {[%clk
0:01:29.2]} 18... dxe5 {[%clk 0:00:19.7]} 19. Nd5 {[%clk 0:01:10.6]} 19... exf4
{[%clk 0:00:16.7]} 20. Rxf4 {[%clk 0:01:05.2]} 20... Ne6 {[%clk 0:00:14.6]} 21.
Bb6 {[%clk 0:00:44.3]} 1-0

[Event "Early-Titled-Tuesday-Blitz-July-09-2024"]
[Site "Chess.com"]
[Date "2024.07.09"]
[Round "6"]
[White "Herzog2012"]
[Black "Naruto75_3"]
[Result "0-1"]
[WhiteElo "2710"]
[BlackElo "2558"]
[TimeControl "180+1"]
[EndTime "9:07:35 PDT"]
[Termination "Naruto75_3 won on time"]

1. e4 {[%clk 0:03:00.9]} 1... c5 {[%clk 0:03:00]} 2. Nf3 {[%clk 0:03:00.6]} 2...
d6 {[%clk 0:02:59.9]} 3. d4 {[%clk 0:03:00.6]} 3... cxd4 {[%clk 0:03:00.8]} 4.
Nxd4 {[%clk 0:03:01.4]} 4... Nf6 {[%clk 0:03:01.5]} 5. Nc3 {[%clk 0:03:01.8]}
5... a6 {[%clk 0:03:01.9]} 6. Bg5 {[%clk 0:03:01.8]} 6... e6 {[%clk 0:03:01.8]}
7. f4 {[%clk 0:02:59.1]} 7... Nbd7 {[%clk 0:02:59.9]} 8. Qf3 {[%clk 0:02:58.7]}
8... Be7 {[%clk 0:02:57.6]} 9. O-O-O {[%clk 0:02:45.2]} 9... Qc7 {[%clk
0:02:54.6]} 10. g4 {[%clk 0:02:44.8]} 10... b5 {[%clk 0:02:52.6]} 11. Bxf6
{[%clk 0:02:44.2]} 11... Nxf6 {[%clk 0:02:50.4]} 12. g5 {[%clk 0:02:44.3]} 12...
Nd7 {[%clk 0:02:49.3]} 13. f5 {[%clk 0:02:44.8]} 13... Ne5 {[%clk 0:02:46.5]}
14. Qh5 {[%clk 0:02:31.8]} 14... g6 {[%clk 0:02:41.8]} 15. fxg6 {[%clk
0:02:29.1]} 15... Nxg6 {[%clk 0:02:40.1]} 16. h4 {[%clk 0:01:56.8]} 16... Bb7
{[%clk 0:02:34.4]} 17. Bh3 {[%clk 0:01:37.4]} 17... b4 {[%clk 0:02:29.4]} 18.
Nce2 {[%clk 0:01:19]} 18... Bxe4 {[%clk 0:02:27.5]} 19. Rhf1 {[%clk 0:01:18.5]}
19... Rc8 {[%clk 0:02:15.2]} 20. Rd2 {[%clk 0:00:53.8]} 20... d5 {[%clk
0:02:11.3]} 21. Qh6 {[%clk 0:00:45.9]} 21... Qe5 {[%clk 0:02:02.5]} 22. Qh5
{[%clk 0:00:18.8]} 22... a5 {[%clk 0:02:00.8]} 23. Qg4 {[%clk 0:00:17.5]} 23...
a4 {[%clk 0:02:00]} 24. h5 {[%clk 0:00:14.9]} 24... Nf8 {[%clk 0:01:59.3]} 25.
Nf3 {[%clk 0:00:07.5]} 25... Qc7 {[%clk 0:01:49.3]} 26. Nfd4 {[%clk 0:00:03.4]}
26... b3 {[%clk 0:01:47.9]} 27. Nc3 {[%clk 0:00:02.3]} 27... bxa2 {[%clk
0:01:44.3]} 28. Nxa2 {[%clk 0:00:03.2]} 28... a3 {[%clk 0:01:42.1]} 29. b3
{[%clk 0:00:02.6]} 29... Qe5 {[%clk 0:01:40.7]} 30. Bg2 {[%clk 0:00:01.8]} 30...
Bxg5 {[%clk 0:01:39.8]} 31. Bxe4 {[%clk 0:00:02.1]} 31... Bxd2+ {[%clk
0:01:38.8]} 32. Kxd2 {[%clk 0:00:02.1]} 32... Qxd4+ {[%clk 0:01:38.9]} 33. Kc1
{[%clk 0:00:01.7]} 33... dxe4 {[%clk 0:01:37.6]} 34. Rd1 {[%clk 0:00:01]} 34...
Qb2+ {[%clk 0:01:37]} 0-1

[Event "Early-Titled-Tuesday-Blitz-July-09-2024"]
[Site "Chess.com"]
[Date "2024.07.09"]
[Round "6"]
[White "Chaubunagungamaug1"]
[Black "kripri"]
[Result "1-0"]
[WhiteElo "2492"]
[BlackElo "2324"]
[TimeControl "180+1"]
[EndTime "9:07:35 PDT"]
[Termination "Chaubunagungamaug1 won by resignation"]

1. d4 {[%clk 0:03:00.9]} 1... f5 {[%clk 0:02:59.9]} 2. c4 {[%clk 0:03:00.4]}
2... Nf6 {[%clk 0:03:00.4]} 3. Nc3 {[%clk 0:03:00.6]} 3... g6 {[%clk 0:02:59.5]}
4. h4 {[%clk 0:02:59.8]} 4... Bg7 {[%clk 0:02:59.4]} 5. h5 {[%clk 0:02:58.8]}
5... gxh5 {[%clk 0:02:58.4]} 6. Bf4 {[%clk 0:02:32.5]} 6... O-O {[%clk
0:02:50.6]} 7. e3 {[%clk 0:02:30.9]} 7... e6 {[%clk 0:02:48]} 8. Nge2 {[%clk
0:02:29.3]} 8... b6 {[%clk 0:02:42.8]} 9. Ng3 {[%clk 0:02:29.4]} 9... h4 {[%clk
0:02:30.2]} 10. Rxh4 {[%clk 0:02:28.2]} 10... Ng4 {[%clk 0:02:22.2]} 11. Rh1
{[%clk 0:02:25.9]} 11... Bb7 {[%clk 0:02:10.4]} 12. Be2 {[%clk 0:01:58.3]} 12...
Nf6 {[%clk 0:01:54.3]} 13. Bf3 {[%clk 0:01:52.2]} 13... Bxf3 {[%clk 0:01:43.5]}
14. Qxf3 {[%clk 0:01:53.1]} 14... Nc6 {[%clk 0:01:38.4]} 15. O-O-O {[%clk
0:01:47.9]} 15... Ne7 {[%clk 0:01:16.4]} 16. Nh5 {[%clk 0:01:43.9]} 16... Ng6
{[%clk 0:01:03.4]} 17. Nxg7 {[%clk 0:01:41.1]} 17... Kxg7 {[%clk 0:01:03.5]} 18.
Bh6+ {[%clk 0:01:38]} 18... Kg8 {[%clk 0:01:03.9]} 19. Bxf8 {[%clk 0:01:30.4]}
19... Qxf8 {[%clk 0:01:04.8]} 20. Kb1 {[%clk 0:01:26.5]} 20... Qb4 {[%clk
0:01:02.2]} 21. e4 {[%clk 0:01:24.9]} 21... f4 {[%clk 0:00:47.5]} 22. e5 {[%clk
0:01:22.7]} 22... Rf8 {[%clk 0:00:29.4]} 23. exf6 {[%clk 0:01:22.3]} 23... Rxf6
{[%clk 0:00:30.3]} 24. d5 {[%clk 0:01:14.3]} 24... e5 {[%clk 0:00:28.1]} 25. Ne4
{[%clk 0:01:13.3]} 25... Rf8 {[%clk 0:00:27.3]} 26. Qb3 {[%clk 0:01:11.9]} 26...
Qe7 {[%clk 0:00:23.7]} 27. d6 {[%clk 0:01:11.8]} 27... cxd6 {[%clk 0:00:21.9]}
28. c5+ {[%clk 0:01:11.9]} 28... Kh8 {[%clk 0:00:21.3]} 29. cxd6 {[%clk
0:01:11.7]} 29... Qd8 {[%clk 0:00:17.7]} 30. Qd5 {[%clk 0:01:08.9]} 30... Qe8
{[%clk 0:00:16.1]} 31. Ng5 {[%clk 0:01:08.2]} 1-0

[Event "Early-Titled-Tuesday-Blitz-July-09-2024"]
[Site "Chess.com"]
[Date "2024.07.09"]
[Round "6"]
[White "NikFil2013"]
[Black "Silent-Killer100"]
[Result "1-0"]
[WhiteElo "2387"]
[BlackElo "2501"]
[TimeControl "180+1"]
[EndTime "9:07:44 PDT"]
[Termination "NikFil2013 won by resignation"]

1. d4 {[%clk 0:03:00.9]} 1... Nf6 {[%clk 0:02:59.8]} 2. c4 {[%clk 0:03:01.1]}
2... c6 {[%clk 0:02:57.8]} 3. Nc3 {[%clk 0:02:57.7]} 3... d5 {[%clk 0:02:58.2]}
4. cxd5 {[%clk 0:02:57.2]} 4... cxd5 {[%clk 0:02:57.1]} 5. Bg5 {[%clk
0:02:56.7]} 5... Nc6 {[%clk 0:02:53.1]} 6. e3 {[%clk 0:02:56.3]} 6... g6 {[%clk
0:02:51.7]} 7. Bd3 {[%clk 0:02:53.9]} 7... Bg7 {[%clk 0:02:50.6]} 8. Nf3 {[%clk
0:02:53.8]} 8... h6 {[%clk 0:02:48.9]} 9. Bf4 {[%clk 0:02:52]} 9... Nh5 {[%clk
0:02:39.8]} 10. Bg3 {[%clk 0:02:43.7]} 10... Nxg3 {[%clk 0:02:37.5]} 11. hxg3
{[%clk 0:02:44.6]} 11... Bg4 {[%clk 0:02:31]} 12. Qc2 {[%clk 0:02:36.9]} 12...
Qd7 {[%clk 0:02:10.8]} 13. Bxg6 {[%clk 0:02:20.6]} 13... Bxf3 {[%clk 0:01:40.2]}
14. gxf3 {[%clk 0:02:12.9]} 14... fxg6 {[%clk 0:01:40.3]} 15. Qxg6+ {[%clk
0:02:12.4]} 15... Kf8 {[%clk 0:01:40.4]} 16. Rh5 {[%clk 0:02:12]} 16... e6
{[%clk 0:01:14.9]} 17. O-O-O {[%clk 0:01:57.9]} 17... Qf7 {[%clk 0:01:03.6]} 18.
Qg4 {[%clk 0:01:56.4]} 18... Rg8 {[%clk 0:00:46.7]} 19. Qh3 {[%clk 0:01:32.8]}
19... Re8 {[%clk 0:00:40.6]} 20. g4 {[%clk 0:01:22.5]} 20... Qe7 {[%clk
0:00:28.4]} 21. Nxd5 {[%clk 0:01:09.8]} 21... exd5 {[%clk 0:00:28.1]} 22. Rf5+
{[%clk 0:01:09.5]} 22... Bf6 {[%clk 0:00:23.9]} 23. Qxh6+ {[%clk 0:01:09.1]}
23... Kf7 {[%clk 0:00:23.1]} 24. g5 {[%clk 0:01:06.8]} 24... Rxg5 {[%clk
0:00:17.3]} 25. Qxg5 {[%clk 0:01:01.9]} 25... Rh8 {[%clk 0:00:17.7]} 26. Rg1
{[%clk 0:00:54.4]} 26... Qe6 {[%clk 0:00:17.4]} 27. Qg7+ {[%clk 0:00:50.3]}
27... Ke8 {[%clk 0:00:15.9]} 28. Rxf6 {[%clk 0:00:48.3]} 1-0